bitfinex/quotes_SOLUSD_20220129
["timestamp","ask_amount","ask_price","bid_price","bid_amount"]
[1643438325459,46.4841,95.759,95.697,1.40899271]
[1643438325659,46.4841,95.759,95.64,15.679]
[1643438325660,46.4841,95.759,95.695,1.40899271]
[1643438325860,6.0,95.749,95.691,1.40899271]
[1643438326061,6.0,95.749,95.687,1.40899271]
[1643438326261,0.25,95.748,95.687,1.40899271]
[1643438326483,0.25,95.748,95.689,1.40899271]
[1643438326884,0.25,95.748,95.688,1.40899271]
[1643438327187,15.682,95.74,95.688,1.40899271]
[1643438327384,0.25,95.739,95.688,1.40899271]
[1643438327683,0.25,95.739,95.663,0.25]
[1643438327684,0.25,95.739,95.682,1.40899271]
[1643438327884,0.25,95.739,95.653,44.5046504]
[1643438327885,3.3,95.739,95.681,1.40899271]
[1643438328086,3.3,95.739,95.68,1.40899271]
[1643438328485,3.3,95.739,95.681,1.40899271]
[1643438328887,0.25,95.739,95.681,1.40899271]
[1643438329288,0.25,95.739,95.682,1.40899271]
[1643438329586,0.25,95.739,95.673,1.40899271]
[1643438329885,0.25,95.739,95.672,1.40899271]
[1643438330286,0.25,95.748,95.675,1.40899271]
[1643438330687,0.25,95.748,95.676,0.25]
[1643438331088,0.25,95.748,95.675,1.40899271]
[1643438331289,0.25,95.748,95.672,1.40899271]
[1643438331892,0.25,95.748,95.668,1.40899271]
[1643438331893,6.0,95.74,95.668,1.40899271]
[1643438332090,6.0,95.738,95.668,1.40899271]
[1643438332293,0.25,95.737,95.665,1.40899271]
[1643438332492,6.0,95.73,95.664,1.40899271]
[1643438332893,0.25,95.729,95.663,1.40899271]
[1643438333492,0.25,95.729,95.661,1.40899271]
[1643438333693,14.26,95.729,95.658,1.40899271]
[1643438334093,6.0,95.719,95.658,1.40899271]
[1643438334294,0.25,95.718,95.658,1.40899271]
[1643438334497,0.25,95.718,95.65,0.25]
[1643438334498,0.25,95.718,95.657,1.40899271]
[1643438334695,0.25,95.718,95.658,1.40899271]
[1643438334896,0.25,95.718,95.657,1.40899271]
[1643438335696,0.25,95.718,95.656,1.40899271]
[1643438335897,0.25,95.718,95.657,0.25]
[1643438336099,0.25,95.718,95.656,1.40899271]
[1643438336297,0.25,95.729,95.653,1.40899271]
[1643438336498,24.9868,95.729,95.654,1.40899271]
[1643438336898,6.0,95.719,95.653,1.40899271]
[1643438337100,6.0,95.719,95.652,1.40899271]
[1643438337297,6.0,95.719,95.653,0.25]
[1643438337898,6.0,95.719,95.658,1.40899271]
[1643438338098,6.0,95.719,95.657,1.40899271]
[1643438338298,6.0,95.719,95.653,0.25]
[1643438338299,6.0,95.719,95.658,1.65899271]
[1643438338499,6.0,95.719,95.658,1.40899271]
[1643438338701,0.25,95.718,95.659,0.25]
[1643438339301,0.25,95.718,95.66,1.40899271]
[1643438339501,0.25,95.718,95.661,41.36870254]
[1643438339901,0.25,95.718,95.663,1.40899271]
[1643438340302,0.25,95.718,95.664,0.25]
[1643438340702,0.25,95.718,95.664,1.65899271]
[1643438341306,0.25,95.718,95.664,1.40899271]
[1643438341501,0.25,95.718,95.663,1.40899271]
[1643438341702,13.22,95.718,95.655,1.40899271]
[1643438341902,13.22,95.718,95.658,1.40899271]
[1643438342106,6.0,95.708,95.658,1.40899271]
[1643438342306,0.25,95.707,95.656,1.40899271]
[1643438342504,6.25,95.707,95.66,1.40899271]
[1643438342705,0.25,95.707,95.66,1.40899271]
[1643438343104,6.25,95.707,95.658,1.40899271]
[1643438343506,6.25,95.707,95.657,1.40899271]
[1643438344105,6.25,95.707,95.656,1.40899271]
[1643438344306,6.25,95.707,95.655,1.40899271]
[1643438344507,6.25,95.707,95.654,1.40899271]
[1643438344707,6.25,95.707,95.653,1.40899271]
[1643438345351,6.25,95.707,95.652,1.40899271]
[1643438345752,6.25,95.707,95.655,1.40899271]
[1643438346053,6.25,95.707,95.648,1.40899271]
[1643438346252,14.77,95.707,95.648,1.40899271]
[1643438346454,14.77,95.707,95.646,1.40899271]
[1643438346653,14.77,95.707,95.651,1.40899271]
[1643438347755,14.52,95.707,95.65,1.40899271]
[1643438347955,6.0,95.707,95.652,1.40899271]
[1643438348155,9.05,95.707,95.652,1.40899271]
[1643438348358,9.05,95.707,95.653,1.40899271]
[1643438348557,9.05,95.707,95.655,1.40899271]
[1643438348757,9.05,95.707,95.65,1.40899271]
[1643438348984,0.25,95.706,95.65,1.40899271]
[1643438349485,0.25,95.706,95.649,1.40899271]
[1643438349886,0.25,95.706,95.65,1.40899271]
[1643438350088,0.25,95.706,95.623,2.79895976]
[1643438350089,6.0,95.707,95.649,1.40899271]
[1643438350689,6.0,95.707,95.653,1.40899271]
[1643438350883,6.0,95.707,95.651,1.40899271]
[1643438351084,20.86,95.707,95.651,1.40899271]
[1643438351486,0.25,95.706,95.651,1.40899271]
[1643438351884,0.25,95.706,95.652,1.40899271]
[1643438352085,0.25,95.706,95.651,1.40899271]
[1643438352284,6.0,95.707,95.65,1.40899271]
[1643438352484,6.0,95.707,95.652,1.40899271]
[1643438352689,6.0,95.707,95.656,1.40899271]
[1643438352885,6.0,95.7,95.656,1.40899271]
[1643438353087,6.0,95.697,95.653,1.40899271]
[1643438353486,6.0,95.697,95.657,1.40899271]
[1643438353685,6.0,95.697,95.63,7.58223034]
[1643438353686,6.0,95.697,95.658,1.40899271]
[1643438354085,6.0,95.697,95.631,2.79895976]
[1643438354086,3.05,95.707,95.657,1.40899271]
[1643438354285,15.686,95.71,95.658,1.40899271]
[1643438354690,6.0,95.7,95.658,1.40899271]
[1643438354890,15.686,95.71,95.661,1.40899271]
[1643438355087,6.0,95.7,95.66,1.40899271]
[1643438355288,9.05,95.7,95.661,1.40899271]
[1643438355487,9.05,95.7,95.66,1.40899271]
[1643438355687,0.25,95.699,95.66,1.40899271]
[1643438359589,0.25,95.699,95.661,1.40899271]
[1643438360793,0.25,95.699,95.66,1.40899271]
[1643438361191,0.25,95.699,95.661,1.40899271]
[1643438361394,0.25,95.699,95.66,1.40899271]
[1643438361993,0.25,95.699,95.663,1.40899271]
[1643438362393,0.25,95.699,95.664,1.40899271]
[1643438363393,0.25,95.699,95.662,1.40899271]
[1643438364995,0.25,95.699,95.663,1.40899271]
[1643438366196,0.25,95.699,95.664,1.40899271]
[1643438366596,0.25,95.699,95.661,1.40899271]
[1643438367198,0.25,95.699,95.659,1.40899271]
[1643438367397,0.25,95.699,95.66,1.40899271]
[1643438367796,21.688,95.7,95.66,1.40899271]
[1643438367999,6.0,95.7,95.667,1.40899271]
[1643438368198,24.4871,95.717,95.673,1.40899271]
[1643438368398,24.4871,95.717,95.676,1.40899271]
[1643438368597,6.0,95.707,95.67,1.40899271]
[1643438368898,15.688,95.7,95.672,1.40899271]
[1643438369097,6.0,95.69,95.662,1.40899271]
[1643438369297,0.25,95.689,95.66,1.40899271]
[1643438369498,6.25,95.689,95.659,1.40899271]
[1643438369698,6.25,95.689,95.658,1.40899271]
[1643438369900,6.25,95.689,95.657,1.40899271]
[1643438370705,6.25,95.689,95.659,1.40899271]
[1643438371102,6.25,95.689,95.655,1.40899271]
[1643438371303,6.25,95.689,95.654,1.40899271]
[1643438371502,6.25,95.689,95.655,1.42871945]
[1643438371503,6.0,95.68,95.655,1.42871945]
[1643438371702,6.0,95.68,95.653,1.42871945]
[1643438371906,72.0,95.678,95.627,2.79895976]
[1643438372104,6.0,95.668,95.629,4.79808522]
[1643438372304,0.25,95.667,95.623,2.79895976]
[1643438372505,0.25,95.667,95.617,2.79895976]
[1643438372707,0.25,95.667,95.616,2.79895976]
[1643438373106,0.25,95.667,95.615,2.79895976]
[1643438373505,0.25,95.688,95.615,2.79895976]
[1643438373705,0.25,95.688,95.616,2.79895976]
[1643438373908,0.25,95.688,95.619,2.79895976]
[1643438374106,15.693,95.67,95.619,2.79895976]
[1643438374305,15.693,95.67,95.616,2.79895976]
[1643438374306,0.25,95.669,95.616,2.79895976]
[1643438374507,6.0,95.66,95.616,2.79895976]
[1643438374906,0.25,95.659,95.615,2.79895976]
[1643438376108,0.25,95.659,95.616,4.79808522]
[1643438376610,0.25,95.659,95.617,4.79808522]
[1643438376808,6.0,95.66,95.608,2.79895976]
[1643438377008,6.0,95.66,95.607,2.79895976]
[1643438377208,0.25,95.659,95.607,2.79895976]
[1643438377408,0.25,95.659,95.591,6.0]
[1643438377409,0.25,95.659,95.606,2.79895976]
[1643438377609,6.0,95.65,95.606,2.79895976]
[1643438377809,0.25,95.649,95.601,2.79895976]
[1643438378010,0.25,95.649,95.607,4.58469275]
[1643438378210,0.25,95.649,95.602,4.58469275]
[1643438378415,0.25,95.649,95.596,2.79895976]
[1643438378612,0.25,95.649,95.594,2.79895976]
[1643438378812,0.25,95.649,95.592,4.58469275]
[1643438379020,0.25,95.649,95.581,2.79895976]
[1643438379212,0.25,95.649,95.554,4.23869813]
[1643438379213,0.25,95.649,95.572,2.79895976]
[1643438379413,6.0,95.64,95.569,2.79895976]
[1643438379612,6.0,95.64,95.542,4.23869813]
[1643438379613,6.0,95.639,95.573,4.58727157]
[1643438379812,6.25,95.639,95.566,2.79895976]
[1643438380014,6.0,95.63,95.56,2.79895976]
[1643438380213,6.0,95.629,95.558,2.79895976]
[1643438380414,23.8144,95.628,95.56,2.79895976]
[1643438380714,15.704,95.61,95.55,2.79895976]
[1643438380918,0.25,95.609,95.548,2.79895976]
[1643438381118,6.0,95.6,95.548,2.79895976]
[1643438381315,0.25,95.599,95.547,2.79895976]
[1643438381916,0.25,95.599,95.545,2.79895976]
[1643438382115,8.7,95.599,95.548,4.58727157]
[1643438382317,8.7,95.599,95.546,4.58727157]
[1643438382515,6.0,95.589,95.544,2.79895976]
[1643438382738,6.0,95.589,95.543,2.79895976]
[1643438382938,0.25,95.588,95.533,2.79895976]
[1643438383138,0.25,95.588,95.532,2.79895976]
[1643438383342,0.25,95.588,95.53,2.79895976]
[1643438383741,0.25,95.588,95.527,2.79895976]
[1643438383938,0.25,95.588,95.524,2.79895976]
[1643438384339,15.708,95.58,95.524,2.79895976]
[1643438384541,6.0,95.57,95.522,2.79895976]
[1643438384740,6.0,95.57,95.525,4.58727157]
[1643438384940,46.3861,95.569,95.51,2.79895976]
[1643438385141,6.0,95.559,95.503,2.79895976]
[1643438385341,0.25,95.558,95.495,2.79895976]
[1643438385840,0.25,95.558,95.479,2.79895976]
[1643438386045,15.715,95.55,95.489,33.87196222]
[1643438386442,0.25,95.549,95.49,4.58727157]
[1643438386843,6.0,95.54,95.49,4.58727157]
[1643438387044,6.0,95.539,95.49,4.58727157]
[1643438387243,6.25,95.539,95.466,2.79895976]
[1643438387444,6.0,95.53,95.46,2.79895976]
[1643438387747,6.0,95.528,95.46,2.79895976]
[1643438387946,19.84,95.528,95.461,18.14503976]
[1643438388146,15.718,95.52,95.461,22.73231133]
[1643438388346,0.25,95.519,95.462,4.58727157]
[1643438388550,6.0,95.51,95.463,40.25615499]
[1643438388746,24.5689,95.519,95.514,1.80972531]
[1643438388747,0.25,95.519,95.514,1.80972531]
[1643438389547,0.25,95.519,95.448,2.79895976]
[1643438389748,10.57,95.519,95.444,2.79895976]
[1643438389949,10.57,95.519,95.439,0.19108024]
[1643438389950,10.32,95.519,95.439,0.38216048]
[1643438390350,6.0,95.509,95.44,4.43994431]
[1643438390749,6.0,95.509,95.439,0.38216048]
[1643438390952,6.0,95.529,95.439,0.38216048]
[1643438391155,15.719,95.51,95.44,4.43121599]
[1643438391751,6.0,95.529,95.441,0.25]
[1643438391951,24.9644,95.555,95.45,6.0]
[1643438392151,15.713,95.55,95.458,6.0]
[1643438392351,15.713,95.55,95.459,42.1845945]
[1643438392550,15.713,95.55,95.469,6.0]
[1643438393052,15.706,95.59,95.47,46.53501998]
[1643438393254,15.706,95.59,95.471,4.42542611]
[1643438393451,15.706,95.59,95.481,40.12034237]
[1643438393653,15.706,95.59,95.481,46.12034237]
[1643438393851,15.706,95.59,95.482,4.42542611]
[1643438394052,15.706,95.59,95.492,6.0]
[1643438394453,6.0,95.58,95.492,6.0]
[1643438394655,15.708,95.57,95.492,6.0]
[1643438394854,15.708,95.57,95.493,0.25]
[1643438395154,6.0,95.56,95.493,0.25]
[1643438395553,15.705,95.59,95.493,0.25]
[1643438395754,15.705,95.59,95.494,24.38871281]
[1643438395953,15.705,95.59,95.495,4.42559191]
[1643438396156,15.705,95.59,95.505,6.0]
[1643438396355,15.705,95.59,95.506,0.25]
[1643438396558,15.705,95.59,95.506,6.25]
[1643438396854,6.0,95.58,95.506,6.25]
[1643438397054,15.706,95.58,95.506,6.25]
[1643438398056,47.5139,95.619,95.506,6.25]
[1643438398355,47.5139,95.619,95.507,32.31223766]
[1643438398555,75.0139,95.649,95.521,38.56683594]
[1643438398955,6.0,95.639,95.531,6.0]
[1643438399155,6.0,95.639,95.532,6.0]
[1643438399354,6.0,95.639,95.532,8.77935106]
[1643438399555,6.0,95.639,95.533,2.52935106]
[1643438399956,6.0,95.639,95.543,6.0]
[1643438400157,6.0,95.639,95.544,33.55264073]
[1643438400359,6.0,95.639,95.545,106.4]
[1643438400558,21.696,95.64,95.555,6.0]
[1643438400960,21.696,95.64,95.556,0.25]
[1643438406571,21.696,95.64,95.557,4.44831973]
[1643438406767,21.696,95.64,95.556,0.25]
[1643438407168,21.696,95.64,95.546,0.25]
[1643438407367,21.696,95.64,95.547,4.44772855]
[1643438407767,21.696,95.64,95.548,0.25]
[1643438407969,21.696,95.64,95.549,4.44772855]
[1643438408671,21.696,95.64,95.53,30.755]
[1643438408672,21.696,95.64,95.546,4.44772855]
[1643438408894,33.336,95.64,95.534,4.44772855]
[1643438409097,33.336,95.64,95.521,4.44772855]
[1643438409295,15.06,95.63,95.521,4.44772855]
[1643438409497,15.699,95.62,95.522,43.02705867]
[1643438409698,48.1671,95.619,95.523,6.0]
[1643438409896,48.1671,95.619,95.532,6.0]
[1643438410099,48.1671,95.619,95.533,6.0]
[1643438410100,6.0,95.609,95.533,6.0]
[1643438410299,6.0,95.609,95.533,10.69772855]
[1643438410500,6.0,95.609,95.534,10.44772855]
[1643438410698,6.0,95.6,95.535,4.44772855]
[1643438410902,6.0,95.6,95.536,0.25]
[1643438411100,6.0,95.6,95.537,4.44772855]
[1643438411300,6.0,95.6,95.538,0.25]
[1643438411703,6.0,95.6,95.539,4.44772855]
[1643438411901,6.0,95.6,95.547,6.0]
[1643438412102,6.0,95.6,95.539,4.44772855]
[1643438412301,6.0,95.6,95.5,15.699]
[1643438412503,6.0,95.6,95.525,0.25]
[1643438412703,6.0,95.6,95.526,4.45361903]
[1643438412903,6.0,95.6,95.527,0.25]
[1643438413106,6.0,95.6,95.536,6.0]
[1643438413304,21.702,95.6,95.537,4.45361903]
[1643438413605,21.702,95.6,95.528,4.45361903]
[1643438413804,21.702,95.6,95.528,10.45361903]
[1643438414211,48.1671,95.619,95.529,7.23297009]
[1643438414608,6.0,95.609,95.54,38.75061064]
[1643438414809,6.0,95.609,95.541,4.70361903]
[1643438415007,6.0,95.609,95.542,4.45361903]
[1643438415208,48.1671,95.619,95.542,4.45361903]
[1643438415409,48.1671,95.619,95.543,0.25]
[1643438415811,48.1671,95.619,95.544,4.45361903]
[1643438416213,48.1671,95.619,95.545,0.25]
[1643438416413,48.1671,95.619,95.546,4.45361903]
[1643438416920,48.1671,95.619,95.547,0.25]
[1643438417112,15.701,95.61,95.547,0.25]
[1643438417712,15.701,95.61,95.548,4.45306579]
[1643438417913,15.701,95.61,95.551,6.0]
[1643438418112,15.701,95.61,95.548,4.45306579]
[1643438418312,15.701,95.61,95.542,0.25]
[1643438418713,15.701,95.61,95.543,4.45658994]
[1643438418912,15.701,95.61,95.544,0.25]
[1643438419113,15.701,95.61,95.553,6.0]
[1643438419313,15.701,95.61,95.554,0.25]
[1643438420616,15.701,95.61,95.555,4.46609756]
[1643438420815,15.701,95.61,95.556,0.25]
[1643438421015,15.701,95.61,95.557,4.46609756]
[1643438422219,15.701,95.61,95.544,4.46609756]
[1643438422420,15.701,95.61,95.544,0.25]
[1643438422621,15.701,95.61,95.545,4.46609756]
[1643438422920,15.701,95.61,95.546,0.25]
[1643438423121,15.701,95.61,95.547,4.46609756]
[1643438423927,5.952491,95.61,95.547,4.46609756]
[1643438424723,5.952491,95.61,95.548,0.25]
[1643438425123,5.952491,95.61,95.549,4.46609756]
[1643438425527,5.952491,95.61,95.55,0.25]
[1643438425827,5.952491,95.61,95.551,4.46609756]
[1643438426227,5.952491,95.61,95.552,0.25]
[1643438426427,5.952491,95.61,95.553,4.46609756]
[1643438426829,5.952491,95.61,95.554,0.25]
[1643438427031,5.952491,95.61,95.555,4.46609756]
[1643438427855,5.952491,95.61,95.552,4.46609756]
[1643438428057,5.952491,95.61,95.556,4.46609756]
[1643438428355,5.952491,95.61,95.553,4.46609756]
[1643438428555,5.952491,95.61,95.501,7.34327354]
[1643438428556,6.0,95.6,95.554,4.46609756]
[1643438428758,15.706,95.59,95.555,4.46609756]
[1643438429056,27.496,95.59,95.555,4.46609756]
[1643438429257,27.496,95.59,95.556,4.46609756]
[1643438429456,27.496,95.59,95.557,4.46609756]
[1643438429857,27.496,95.59,95.521,4.23869813]
[1643438430464,6.0,95.58,95.518,4.23869813]
[1643438430661,21.706,95.58,95.518,4.23869813]
[1643438430858,6.0,95.579,95.518,4.23869813]
[1643438431760,6.0,95.57,95.508,4.31947864]
[1643438431959,6.0,95.57,95.509,4.31947864]
[1643438432162,6.0,95.57,95.51,4.31947864]
[1643438432460,6.0,95.57,95.511,4.31947864]
[1643438432661,6.0,95.57,95.512,4.31947864]
[1643438432860,6.0,95.57,95.513,4.31947864]
[1643438433059,6.0,95.57,95.514,4.31947864]
[1643438433261,6.0,95.57,95.515,4.31947864]
[1643438433459,21.707,95.57,95.515,4.31947864]
[1643438433662,15.707,95.57,95.516,4.31947864]
[1643438433860,15.707,95.57,95.517,4.31947864]
[1643438434159,15.707,95.57,95.518,4.31947864]
[1643438434559,15.711,95.55,95.519,4.31947864]
[1643438434763,15.711,95.55,95.52,4.31947864]
[1643438434963,15.711,95.55,95.521,4.31947864]
[1643438435161,6.0,95.54,95.521,4.31947864]
[1643438435562,21.712,95.54,95.491,4.23869813]
[1643438435761,21.712,95.54,95.451,24.61116072]
[1643438435762,21.712,95.54,95.476,4.23869813]
[1643438435964,48.9685,95.539,95.476,4.23869813]
[1643438436162,48.9685,95.539,95.477,18.16769036]
[1643438436663,48.9685,95.539,95.478,4.03772451]
[1643438436863,15.714,95.53,95.478,4.03772451]
[1643438437063,28.214,95.53,95.478,4.03772451]
[1643438437265,28.214,95.53,95.479,18.16769036]
[1643438437564,12.5,95.53,95.48,4.03772451]
[1643438438168,12.5,95.53,95.481,18.16769036]
[1643438438368,6.0,95.54,95.481,18.16769036]
[1643438438369,6.0,95.54,95.482,4.03772451]
[1643438438666,6.0,95.549,95.482,4.03772451]
[1643438438866,15.713,95.54,95.483,0.25]
[1643438439067,15.713,95.54,95.483,18.41769036]
[1643438439267,15.713,95.54,95.483,18.16769036]
[1643438439568,15.713,95.54,95.449,6.89473102]
[1643438439569,15.713,95.54,95.484,22.20541487]
[1643438439769,15.713,95.54,95.485,0.25]
[1643438439966,15.713,95.54,95.486,4.03772451]
[1643438440169,15.713,95.54,95.486,18.16769036]
[1643438440368,15.713,95.54,95.487,4.03772451]
[1643438440971,15.713,95.54,95.488,18.16769036]
[1643438441169,15.713,95.54,95.489,4.03772451]
[1643438441769,15.713,95.54,95.49,18.16769036]
[1643438441970,15.713,95.54,95.491,4.03772451]
[1643438442170,0.25,95.539,95.491,4.03772451]
[1643438442471,0.25,95.539,95.492,18.16769036]
[1643438442670,0.25,95.539,95.493,4.03772451]
[1643438443173,0.25,95.539,95.494,18.16769036]
[1643438443372,0.25,95.539,95.495,4.03772451]
[1643438443869,0.25,95.539,95.496,18.16769036]
[1643438444072,0.25,95.539,95.497,4.03772451]
[1643438444673,0.25,95.539,95.498,18.16769036]
[1643438444975,0.25,95.539,95.499,4.03772451]
[1643438445673,0.25,95.539,95.5,18.16769036]
[1643438446075,0.25,95.539,95.501,4.03772451]
[1643438446374,0.25,95.539,95.494,38.94735436]
[1643438446573,0.25,95.539,95.495,4.02612263]
[1643438446774,0.25,95.539,95.467,4.23869813]
[1643438446975,0.25,95.539,95.468,0.25]
[1643438447176,15.713,95.54,95.469,4.02612263]
[1643438447374,15.713,95.54,95.47,0.25]
[1643438447577,15.713,95.54,95.47,39.41779991]
[1643438447775,15.713,95.54,95.471,18.17320877]
[1643438448074,15.713,95.54,95.472,4.02612263]
[1643438448276,0.25,95.539,95.472,4.27612263]
[1643438448474,0.25,95.539,95.473,4.02612263]
[1643438448675,0.25,95.539,95.473,22.1993314]
[1643438448876,0.25,95.539,95.474,4.27612263]
[1643438449076,0.25,95.539,95.474,22.4493314]
[1643438449277,0.25,95.539,95.475,4.02612263]
[1643438449476,0.25,95.539,95.475,22.1993314]
[1643438449677,0.25,95.539,95.476,4.27612263]
[1643438449878,0.25,95.539,95.477,4.02612263]
[1643438450282,0.25,95.539,95.478,18.17320877]
[1643438450578,0.25,95.539,95.479,4.02612263]
[1643438451177,0.25,95.539,95.48,18.17320877]
[1643438451381,0.25,95.539,95.481,4.02612263]
[1643438451979,0.25,95.539,95.482,18.17320877]
[1643438452478,0.25,95.539,95.483,4.02612263]
[1643438452681,0.25,95.539,95.493,37.15307361]
[1643438452880,6.0,95.549,95.494,4.27612263]
[1643438453079,6.0,95.549,95.495,18.17320877]
[1643438453281,0.25,95.548,95.496,4.27612263]
[1643438453481,0.25,95.548,95.497,4.02612263]
[1643438453680,0.25,95.548,95.497,22.1993314]
[1643438453907,0.25,95.548,95.498,4.02612263]
[1643438454081,0.25,95.548,95.498,22.1993314]
[1643438454281,0.25,95.548,95.499,4.02612263]
[1643438454482,0.25,95.548,95.499,22.1993314]
[1643438454683,0.25,95.548,95.5,4.02612263]
[1643438454883,0.25,95.548,95.5,22.1993314]
[1643438455082,0.25,95.548,95.501,4.02612263]
[1643438455286,0.25,95.548,95.501,22.1993314]
[1643438455483,0.25,95.548,95.502,4.02612263]
[1643438455782,0.25,95.548,95.502,22.1993314]
[1643438455982,0.25,95.548,95.503,4.02612263]
[1643438456482,0.25,95.548,95.504,18.17320877]
[1643438456682,0.25,95.548,95.505,4.02612263]
[1643438456884,0.25,95.548,95.505,22.1993314]
[1643438457085,47.3048,95.603,95.515,6.0]
[1643438457284,47.3048,95.603,95.516,148.22538882]
[1643438457486,47.3048,95.603,95.517,4.02612263]
[1643438457684,47.3048,95.603,95.523,6.0]
[1643438457887,47.3048,95.603,95.527,6.0]
[1643438458087,47.3048,95.603,95.528,6.0]
[1643438458285,47.3048,95.603,95.528,10.27612263]
[1643438458487,47.3048,95.603,95.534,6.0]
[1643438458687,47.3048,95.603,95.534,39.25638942]
[1643438458887,47.3048,95.603,95.539,6.0]
[1643438459091,47.3048,95.603,95.54,4.02612263]
[1643438459290,47.3048,95.603,95.541,0.25]
[1643438459489,47.3048,95.603,95.542,4.02612263]
[1643438459889,47.3048,95.603,95.543,0.25]
[1643438460091,47.3048,95.603,95.543,2.78616289]
[1643438460292,47.3048,95.603,95.544,2.53616289]
[1643438460691,0.25,95.602,95.545,0.25]
[1643438462315,15.698,95.63,95.546,2.53616289]
[1643438462517,47.7239,95.656,95.556,6.0]
[1643438462716,47.7239,95.656,95.557,145.48615384]
[1643438462917,47.7239,95.656,95.558,22.13753118]
[1643438463119,47.7239,95.656,95.568,6.0]
[1643438463317,47.7239,95.656,95.569,0.25]
[1643438463516,15.06,95.66,95.569,10.27919847]
[1643438463716,15.06,95.66,95.57,6.56536136]
[1643438463917,15.06,95.66,95.571,0.25]
[1643438464117,15.691,95.67,95.581,43.12748285]
[1643438464316,15.691,95.67,95.582,0.25]
[1643438464517,6.0,95.66,95.591,6.0]
[1643438464717,6.0,95.66,95.582,2.78616289]
[1643438465118,6.0,95.66,95.592,8.54978795]
[1643438465322,6.0,95.66,95.593,0.25]
[1643438465518,6.0,95.66,95.593,2.79978795]
[1643438465723,6.0,95.66,95.594,2.54978795]
[1643438466319,0.25,95.659,95.58,2.54978795]
[1643438466520,23.1522,95.659,95.564,20.42230779]
[1643438466720,6.0,95.649,95.565,0.25]
[1643438467019,5.75,95.649,95.565,18.35718]
[1643438467219,5.75,95.649,95.566,36.59847673]
[1643438467420,5.75,95.649,95.567,0.25]
[1643438467622,5.75,95.649,95.576,6.0]
[1643438467821,5.75,95.649,95.577,0.25]
[1643438468123,5.75,95.649,95.577,6.25]
[1643438468323,23.287,95.658,95.578,2.54978795]
[1643438468324,0.25,95.648,95.578,2.54978795]
[1643438468526,0.25,95.648,95.588,6.0]
[1643438468822,0.25,95.648,95.589,0.25]
[1643438469021,0.25,95.648,95.596,6.0]
[1643438469421,0.25,95.658,95.578,2.54978795]
[1643438469623,0.25,95.658,95.474,94.39816829]
[1643438469624,15.694,95.65,95.567,2.54978795]
[1643438469921,6.25,95.649,95.574,6.0]
[1643438470121,0.25,95.649,95.577,6.0]
[1643438470322,0.25,95.649,95.578,0.25]
[1643438470523,0.25,95.649,95.578,6.25]
[1643438470721,0.25,95.649,95.578,0.25]
[1643438471121,15.694,95.65,95.578,0.25]
[1643438471324,22.9022,95.659,95.579,2.54978795]
[1643438471523,22.9022,95.659,95.589,6.0]
[1643438471724,22.9022,95.659,95.59,35.29374469]
[1643438471924,22.9022,95.659,95.59,38.09353264]
[1643438472123,22.9022,95.659,95.591,2.54978795]
[1643438472324,15.691,95.67,95.592,0.25]
[1643438472526,0.25,95.658,95.601,6.0]
[1643438472725,6.0,95.66,95.601,6.0]